{"text_format":"1","workbook":"xlsx","n_sheets":9,"sheets":["Expense Claim","Expense_ Claim_Type","Name _Vendor_EFT","Base_ Locations","Mileage","Mileage (suggested guidelines)","Positions","GL_1","GL_Mileage"],"not_rendered":{"charts":0,"images":5,"macros":1,"external_links":1,"defined_names":63,"comments":1,"pivot_tables":0},"unopened":[],"bounds":{"document_bytes":16777216,"sheet_cells":100000,"rows_first":2000,"rows_last":500,"rows_between":2000,"halvings":0,"cell_chars":16384,"cell_head_chars":4096},"cells_cut":0,"cells_raw":0,"read":"whole","date_system":"1904"}

{"sheet":"Expense Claim","index":0,"n_rows":47,"n_cols":19,"rows_kept":47,"cut":false,"hidden":false,"merged":[[21,17,21,18],[22,17,22,18],[23,17,23,18],[24,17,24,18],[25,17,25,18],[14,17,15,18],[16,17,16,18],[17,17,17,18],[18,17,18,18],[19,17,19,18],[20,17,20,18],[16,0,19,3],[20,0,22,3],[23,0,25,3],[26,0,28,3],[36,14,36,18],[35,2,35,3],[34,0,34,1],[44,9,44,13],[45,9,45,13],[32,17,32,18],[35,0,35,1],[34,17,34,18],[35,14,35,15],[35,17,35,18],[26,7,26,9],[22,7,22,9],[31,10,31,12],[32,10,32,12],[22,10,22,12],[23,10,23,12],[23,7,23,9],[29,7,29,9],[33,7,33,9],[30,7,30,9],[46,9,46,13],[44,14,44,18],[40,11,40,13],[41,11,41,13],[42,11,42,13],[43,0,43,10],[45,0,46,2],[44,0,44,2],[38,14,38,16],[38,17,38,18],[39,11,39,13],[39,0,39,2],[40,0,40,2],[41,0,41,2],[42,0,42,2],[38,0,38,2],[46,14,46,18],[45,3,46,8],[45,14,45,18],[44,3,44,8],[38,11,38,13],[33,10,33,12],[34,10,34,12],[34,7,34,9],[33,17,33,18],[26,17,26,18],[34,2,34,3],[29,10,29,12],[32,4,32,6],[33,4,33,6],[34,4,34,6],[27,10,27,12],[29,0,31,3],[27,7,27,9],[28,17,28,18],[29,17,29,18],[30,17,30,18],[31,17,31,18],[27,17,27,18],[26,4,26,6],[27,4,27,6],[28,4,28,6],[29,4,29,6],[30,4,30,6],[31,4,31,6],[3,0,4,0],[3,1,4,7],[7,8,7,9],[8,8,8,9],[9,8,9,9],[20,7,20,9],[6,8,6,9],[11,8,11,9],[18,7,18,9],[14,0,15,3],[17,7,17,9],[13,0,13,18],[20,10,20,12],[19,10,19,12],[3,8,3,18],[10,8,10,9],[4,8,4,9],[15,7,15,9],[16,7,16,9],[19,7,19,9],[9,1,9,7],[10,0,12,0],[10,1,12,7],[5,1,5,7],[0,0,2,7],[0,8,2,18],[35,4,35,13],[5,8,5,9],[4,10,4,13],[5,10,5,13],[11,10,11,13],[16,10,16,12],[17,10,17,12],[10,10,10,13],[21,10,21,12],[15,10,15,12],[18,10,18,12],[24,10,24,12],[6,10,6,13],[7,10,7,13],[8,10,8,13],[9,10,9,13],[12,8,12,12],[14,4,14,16],[15,4,15,6],[16,4,16,6],[5,0,7,0],[8,1,8,7],[37,14,37,16],[39,14,42,16],[43,11,43,13],[37,17,37,18],[39,17,42,18],[43,14,43,18],[40,3,40,4],[41,3,41,4],[42,3,42,4],[39,5,39,6],[40,5,40,6],[41,5,41,6],[42,5,42,6],[39,7,39,10],[40,7,40,10],[41,7,41,10],[42,7,42,10],[37,0,37,2],[37,3,37,4],[37,5,37,6],[37,7,37,10],[37,11,37,13],[39,3,39,4],[38,3,38,4],[38,5,38,6],[38,7,38,10],[6,1,6,7],[7,1,7,7],[36,0,36,13],[17,4,17,6],[18,4,18,6],[19,4,19,6],[20,4,20,6],[21,4,21,6],[22,4,22,6],[23,4,23,6],[24,4,24,6],[25,4,25,6],[25,7,25,9],[24,7,24,9],[26,10,26,12],[31,7,31,9],[28,7,28,9],[28,10,28,12],[25,10,25,12],[21,7,21,9],[32,7,32,9],[32,0,33,1],[32,2,33,3],[30,10,30,12]]}
[null,null,null,null,null,null,null,null,"EMPLOYEE EXPENSE CLAIM              Bus Driver Only"]
[]
[]
["Name\nVendor #",null,null,null,null,null,null,null,"Meals/Other"]
[null,null,null,null,null,null,null,null,"Date",null,"Reason",null,null,null,"Breakfast Max $10","Lunch  Max $15","Dinner Max $20","Other","Total"]
["Address",null,null,null,null,null,null,null,null,null,null,null,null,null,null,null,null,null,{"$f":"IF(SUM(O6:R6)=0,\"\",(SUM(O6:R6)))","v":""}]
[null,null,null,null,null,null,null,null,null,null,null,null,null,null,null,null,null,null,{"$f":"IF(SUM(O7:R7)=0,\"\",(SUM(O7:R7)))","v":""}]
[null,null,null,null,null,null,null,null,null,null,null,null,null,null,null,null,null,null,""]
["Base Location",null,null,null,null,null,null,null,null,null,null,null,null,null,null,null,null,null,""]
["Position",null,null,null,null,null,null,null,null,null,null,null,null,null,null,null,null,null,""]
["Reason",null,null,null,null,null,null,null,null,null,null,null,null,null,null,null,null,null,""]
[null,null,null,null,null,null,null,null,null,null,null,null,null,null,null,null,null,null,""]
[null,null,null,null,null,null,null,null,"Subtotal Meals/Other",null,null,null,null,null,null,null,{"$f":"IF(SUM(Q6:Q12)=0,\"\",(SUM(Q6:Q12)))","v":""},{"$f":"IF(SUM(R6:R12)=0,\"\",(SUM(R6:R12)))","v":""},{"$f":"IF(SUM(S6:S12)=0,\"\",(SUM(S6:S12)))","v":""}]
[]
["Expense Claim Instructions:  ",null,null,null,"KILOMETERS DRIVEN",null,null,null,null,null,null,null,null,null,null,null,null,"REASON"]
[null,null,null,null,"Date",null,null,"From",null,null,"To",null,null,"Bus#","KM's","Less 22km","Total KM's"]
["1. Please ensure all information is filled out in full, original itemized receipts are attached, and correct approval is obtained.   Incomplete claims will be returned.",null,null,null,null,null,null,null,null,null,null,null,null,null,null,"-22",{"$f":"IF(O17=0,\"\",(O17+P17))","v":""}]
[null,null,null,null,null,null,null,null,null,null,null,null,null,null,null,"-22",{"$f":"IF(O18=0,\"\",(O18+P18))","v":""}]
[null,null,null,null,null,null,null,null,null,null,null,null,null,null,null,"-22",""]
[null,null,null,null,null,null,null,null,null,null,null,null,null,null,null,"-22",""]
["2. Please submit only the original claim on a monthly basis.  Photocopies or faxes are not accepted.",null,null,null,null,null,null,null,null,null,null,null,null,null,null,"-22",""]
[null,null,null,null,null,null,null,null,null,null,null,null,null,null,null,"-22",""]
[null,null,null,null,null,null,null,null,null,null,null,null,null,null,null,"-22",""]
["3.  Further information can be found in Policy#520 Staff Travel and Expense located on the SSRSB' website. ",null,null,null,null,null,null,null,null,null,null,null,null,null,null,"-22",""]
[null,null,null,null,null,null,null,null,null,null,null,null,null,null,null,"-22",""]
[null,null,null,null,null,null,null,null,null,null,null,null,null,null,null,"-22",""]
["4.  In the Kilometres Driven section, please use the civic address",null,null,null,null,null,null,null,null,null,null,null,null,null,null,"-22",""]
[null,null,null,null,null,null,null,null,null,null,null,null,null,null,null,"-22",""]
[null,null,null,null,null,null,null,null,null,null,null,null,null,null,null,"-22",""]
["4. If additional space is required, please use a second claim form. ",null,null,null,null,null,null,null,null,null,null,null,null,null,null,"-22",""]
[null,null,null,null,null,null,null,null,null,null,null,null,null,null,null,"-22",""]
[null,null,null,null,null,null,null,null,null,null,null,null,null,null,null,"-22",""]
["Kilometers",null,"Rate",null,null,null,null,null,null,null,null,null,null,null,null,"-22",""]
[null,null,null,null,null,null,null,null,null,null,null,null,null,null,null,"-22",""]
["0-16,000 km",null,".4231/km",null,null,null,null,null,null,null,null,null,null,null,null,"-22",""]
["16,000.1 + km",null,".3734/km",null,"Total Kilometers Claimed",null,null,null,null,null,null,null,null,null,0.42309999999999998,null,{"$f":"IF(SUM(Q17:Q35)=0,\"\",(SUM(Q17:Q35)))","v":""}]
["ACCOUNTING INFORMATION",null,null,null,null,null,null,null,null,null,null,null,null,null,"TOTALS"]
["GL# and  Explanation",null,null,"Fund Center",null,"Fund",null,"Functional Area",null,null,null,"Amount",null,null,"Total Meals/Other",null,null,{"$f":"S13","v":""}]
["631100 Travel",null,null,68959731,null,1000,null,5100000000,null,null,null,null,null,null,"Total Mileage",null,null,{"$f":"IF(Q36<=16000,Q36*O36,\"\")","v":""}]
["731300 - License Renewal",null,null,68959731,null,1000,null,5100000000,null,null,null,null,null,null,"AMOUNT OF CLAIM",null,null,{"$f":"IF(K44=0,\"\",K44)","v":""}]
[]
[]
[]
["Total Accounting Distribution: ",null,null,null,null,null,null,null,null,null,null,{"$f":"IF(SUM(N37:N43)=0,\"\",(SUM(N37:N43)))","v":""}]
["Date Submitted:",null,null,null,null,null,null,null,null,"Date Approved:"]
["Claimant's Signature:",null,null,null,null,null,null,null,null,"Approved By (print):"]
[null,null,null,null,null,null,null,null,null,"Approval  Signature:"]

{"sheet":"Expense_ Claim_Type","index":1,"n_rows":3,"n_cols":1,"rows_kept":3,"cut":false,"hidden":true,"merged":[]}
["Employee Expense Claim"]
["PD Expense Claim"]
["In-Service Expense Claim"]

{"sheet":"Name _Vendor_EFT","index":2,"n_rows":1464,"n_cols":1,"rows_kept":1464,"cut":false,"hidden":true,"merged":[]}
[]
["AARTS, KIMBERLY A-22021140"]
["ADAMS FRANK, DARCELLE-22033114"]
["ALCOE-HOLLAD, GILLEAN-22000182"]
["ALIPHAT, MARY S-22010505"]
["ALLEN, DENISE A-22000217"]
["ALLEN, VIRGINIA M-22019235"]
["ALLEN, WENDY J.-22011752"]
["AMIRAULT, TANIA-22012717"]
["AMIRO, RUTH A-22005735"]
["ANDERS-LAUTEN, JONATHAN G-22021144"]
["ANDREWS, ANGELA S-22011591"]
["ANDREWS, ELIZABETH A-22000297"]
["ANTHONY, KAREN M-22000338"]
["ARAB, PATRICIA-22015847"]
["ARMSTRONG, BEVERLY-22022376"]
["ARMSTRONG, ELLEN M-22019378"]
["ARMSTRONG, JOHN T-22000378"]
["ARMSTRONG, KIMBERLEY-22017635"]
["ARMSTRONG, SUSAN M-22010001"]
["ATHERTON, JOHN R-22014756"]
["ATKINS, CONNIE-22032366"]
["AUCOIN,  JOSEPH R-22000467"]
["AULENBACK, ROBERT C-22018178"]
["BACKMAN, CASSIE L-22000510"]
["BACKMAN, MARLENE (DNU)-22000512"]
["BAKER, LISA-22000539"]
["BAKER, PAMELA J-22019216"]
["BAKER, PAULA A-22000541"]
["BAKER, RUBY-22008939"]
["BAKER-RAWDING,  ANDREA D-22011754"]
["BALCOM, GREG G.-22031398"]
["BALD, NATHAN A-22021624"]
["BALDWIN-PENNY, SARAH-22017553"]
["BANFIELD, CAROLYN-22000576"]
["BARKER, J KELLY-22021604"]
["BARKHOUSE, SHARON R-22000616"]
["BARONI, LYNNE E-22000626"]
["BARRIER, RUSSELL A-22000632"]
["BARRY, CRYSTALANN L-22015744"]
["BARRY, DIANE M-22000640"]
["BARRY, ELIZABETH-22033107"]
["BARRY, LINDA-22000643"]
["BARTOLACCI, PAOLA-22021181"]
["BATTISTE, ROBERT J-22017015"]
["BAY, ROXANE-22022515"]
["BAZOT, AMBROISE-22018953"]
["BEDARD, MICHELLE-22022546"]
["BEDGOOD, TRACY-22013539"]
["BELL, KENNETH-22031652"]
["BELL, REGINALD G-22000779"]
["BELL, ROBYN LEA-22017454"]
["BELLIVEAU WOOD, JASON-22032061"]
["BENNETT, LORI-22018928"]
["BENOIT, SASHA-22033108"]
["BENT, ALICE-22008747"]
["BENT, KELLY-ANNE A-22019487"]
["BENTON, MARLA-22019366"]
["BERRIGAN, JANE C-22008952"]
["BEST, MICHAEL-22021510"]
["BEZEAU, RYAN-22014763"]
["BIRD, CONNIE L-22017927"]
["BIRD, R MITCHELL-22017288"]
["BISHOP, STEVEN J-22017964"]
["BLAIN, JANICE E-22018778"]
["BLAIR, KELLY-22001005"]
["BLANCHARD, CALEE-22022458"]
["BLYTH, CLARE M-22019486"]
["BOLIVAR, CRAIG-22032572"]
["BOLIVAR-GETSON, CAROLYN-22019039"]
["BOLIVAR-SABEAN, SHELLEY L-22010029"]
["BOND, BARBARA-22014502"]
["BOND, LISA-22001068"]
["BOND, PETER B-22015671"]
["BONFIELD, FRANCES-22022457"]
["BONNEY, MATTHEW (ROB)-22032389"]
["BOUDREAU, CRYSTAL-22015023"]
["BOUDREAU, MATTHEW C-22018617"]
["BOUTILIER, JENNIFER-22021991"]
["BOUTILIER, KRISTY  L-22014651"]
["BOUTILIER, RICHARD J-22013980"]
["BOWERS, SANDRA M-22013191"]
["BOWER-VEINOTTE, WANDA E-22021104"]
["BOWES, MARGARET L-22001283"]
["BRACKEN, KATIE-22022542"]
["BRAGG, JAMES D-22022019"]
["BRAZILL, KAREN M-22008591"]
["BREAUGH, MARC T-22015890"]
["BRECKON,  HILARY E-22017453"]
["BREMNER, DALE-22019524"]
["BRENNAN, DAVID A-22019297"]
["BRENNAN, JANINE-22014270"]
["BREWSTER, NANCY L-22017860"]
["BREWSTER-POTTER, BRENDA-22011739"]
["BRIDEAU-CLARK, ELIZABETH-22001394"]
["BRIGGS, STEPHEN-22001397"]
["BRINE, SHERRY-22001399"]
["BRINSON, CATHY-22033364"]
["BRITTAIN, TANYA M-22017452"]
["BRITTEN, CHRISTOPHER M-22016931"]
["BRITTEN, SHELLEY-22001409"]
["BROADBENT, ELIZABETH-22010324"]
["BROGAN, KELLY-22001736"]
["BROOKS, CHARLOTTE-22001417"]
["BROOME BONNIE S-22018281"]
["BROOME, DAVID D-22017036"]
["BROOME, SHELDON-22001420"]
["BROWN, NEIL J-22021649"]
["BROWN, RHEAD C-22017874"]
["BROWN, SHARON-22032502"]
["BROWN, SHONTELLE R-22019152"]
["BROWN, TRACEY M-22017398"]
["BROWN, WILLIAM C-22007294"]
["BROWN-HALEY, VALERIE-22013540"]
["BROWN-LAVERIE, LEAANN M-22019520"]
["BRUCE, HOLLIE-22011828"]
["BRUHM, CYNTHIA L-22007055"]
["BRUHM, DALE T-22001513"]
["BRUHM, WILLIAM L-22001512"]
["BRUNT, DONNA M-22001517"]
["BRYAN, ANGELA-22018175"]
["BUDDEN, DARYL E-22013492"]
["BUDDEN, SUSAN-22001554"]
["BUFFET, CARRIE-22001559"]
["BURCHELL, SHARON A (DNU)-22014401"]
["BURDETT, JUDITH-22001567"]
["BURGESS, DENISE-22016771"]
["BURGOYNE, SUSAN L-22001569"]
["BURKE, ANGELA M-22001571"]
["BURKE, ANNETTE-22010601"]
["BURKE, DONNA-22001582"]
["BURNS, MARIELLE-22008137"]
["BURRIDGE, C ELIZABETH-22017195"]
["BURRIS, SHIRLEY-22001636"]
["BUSH, AMY L-22017567"]
["BUSH, DENISE-22019291"]
["BUTLER, BARRY J (DNU)-22017010"]
["BUTLER, CATHERINE M-22017011"]
["BUTT, BYRON D-22001672"]
["BUTT, CHARLOTTE A-22001675"]
["CAINEN, GEOFF-22031956"]
["CALDWELL, STEPHANIE-22001716"]
["CAMERON, DEBRA-22021711"]
["CAMERON, RANDY A-22000023"]
["CAMERON, SCOTT R.-22022543"]
["CAMERON-KLUGE, SYLVIA E-22008956"]
["CAMP, ALEXANDRA M-22017280"]
["CAMPBELL, JOHN LEO  (DO NOT USE)-22017388"]
["CAMPBELL, JOHN LEO-22000053"]
["CAMPBELL, RUTH A-22000067"]
["CAMPBELL, SUZANNE-22022725"]
["CANN, DANIELLE S-22021382"]
["CANNON, BRODY-22010552"]
["CAREY,  ANNETTE F.-22011755"]
["CARTER, CHRISTOPHER-22022555"]
["CATTON, SHANNON C-22016101"]
["CHALDECOTT, HEATHER-22000189"]
["CHANDLER, JULIE A-22017012"]
["CHANDLER, LISA-22018578"]
["CHANDLER, SHEREE L-22000201"]
["CHANDLER, SUSAN S-22017400"]
["CHAPMAN, BARBARA-22033411"]
["CHAPMAN, CHRISTINE-22016003"]
["CHARRON, PAUL-22033109"]
["CHASE, JAYLENE M-22017013"]
["CHIASSON, JONATHAN R-22000284"]
["CHILDS, JALENA-22013188"]
["CHISHOLM, MACNEIL M-22018900"]
["CHISHOLM, MARY E-22017289"]
["CHURCH-CORNELIUS, SHARON-22008947"]
["CHURCHILL, EVA-22019148"]
["CLAHANE, JULIA-22022549"]
["CLARK, CHRISTINE-22000423"]
["CLARK, FIONA E-22008138"]
["CLATTENBURG, BRUCE-22032469"]
["CLENDENNING, BENJAMIN B-22021672"]
["CLEVELAND, CAROL-22019353"]
["COCHRANE, BARBARA A-22000491"]
["COCHRANE, TERI-22000495"]
["COGAN-SYLVESTER, KELLY A-22018212"]
["COLLINS, MATTHEW J-22015962"]
["COLLINS, SARAH J-22000530"]
["COLLINS-NIFORD, JENNIFER (DNU)-22004647"]
["COLP, KATHIE-22021438"]
["COMEAU, GASTON-22000570"]
["COMEAU, IAN D-22010086"]
["COMEAU, J TRACY-22010087"]
["COMEAU, JANETTE (DNU)-22000583"]
["COMEAU, RICHARD-22000601"]
["COMEAU, STEFANIE-22018066"]
["COMSTOCK, MEGAN-22016308"]
["CONKLIN, PATTI-22000622"]
["CONNOLLY, ANGELA-22021152"]
["CONNOLLY, KAREN E-22000649"]
["CONNOLLY, SHELLEY L-22000639"]
["CONNORS, BROOKE A-22019044"]
["CONRAD, ALLEN-22009084"]
["CONRAD, ANDREA-22011167"]
["CONRAD, BRENDA G-22013169"]
["CONRAD, BRENDA LOUISE-22022621"]
["CONRAD, CHRISTA E-22000652"]
["CONRAD, FRED W III-22000656"]
["CONRAD, GAIL-22018686"]
["CONWAY, MARY JO-22000670"]
["COOK, BRENDA G-22000675"]
["COOK, DAVID L-22007413"]
["COOK, EVA-22033243"]
["COOK, SONYA L-22011756"]
["COOK, STEPHANIE-22014768"]
["COOK, TRACEY L-22010702"]
["COOK-BENT, CANDACE T-22014844"]
["COOPER, BRIAN-22000697"]
["COOPER, MICHAEL-22022561"]
["CORBETT, KEVIN E-22010509"]
["CORESCHI, ANDREA L-22007635"]
["CORKUM,  BRENTON-22011363"]
["CORKUM, AMBER-22033110"]
["CORKUM, ELIZABETH-22014378"]
["CORKUM, HAL L-22000722"]
["CORKUM, IAN-22000724"]
["CORKUM, JANET R-22016342"]
["CORKUM, JESSICA-22011044"]
["CORKUM, KAREN A-22022361"]
["CORKUM, ROBERT J-22000726"]
["CORKUM-OICKLE, BOBBI J-22013170"]
["CORMIER, ANTHONY L-22021625"]
["CORNELIUS, JANICE L-22018510"]
["COSMAN, GAIL M-22000763"]
["COUNTWAY, JAIME-22021886"]
["COUSINS, MELANIE D-22021514"]
["COVEY,  KAREN-22003447"]
["COX, JENNIFER-22019144"]
["COX, MATTHEW D-22021620"]
["COX, SHIRLEY-22000818"]
["CRAWFORD, BRIAN A-22012600"]
["CRAWFORD, KARALEE-22017507"]
["CREASER, DANIEL B-22000836"]
["CREASER, KATHRYN-22015906"]
["CREASER, VANDALEA R-22010511"]
["CREWS, RHONDA (DO NOT USE)-22008749"]
["CREWS, RHONDA-22011757"]
["CROCKER, JULIE-22033111"]
["CROFT, ADAM-22014117"]
["CROFT, BRENDA E-22004573"]
["CROFT, CATHERINE-22000864"]
["CROFT, JOHN W-22000869"]
["CROFT, WHITNEY M-22021463"]
["CRONK, B WAYNE-22012826"]
["CROSS, ALICIA N-22000892"]
["CROSS, GLENDA-22018996"]
["CROSSLAND, ELIZABETH-22000897"]
["CROUSE, ANDREA J-22000904"]
["CROUSE, ANN-MARIE-22010710"]
["CROUSE, DENISE-22010418"]
["CROUSE, ENGELINA E-22014846"]
["CROUSE, PETER-22000918"]
["CROUSE, SHANNON-22019139"]
["CROUSE, STACEY LYNN-22018896"]
["CROUSE, WAYNE H-22017885"]
["CROUSE-EISNOR, RHODA-22000919"]
["CROWELL, SUSAN-22000935"]
["CROXEN, DIANNE-22000939"]
["CROZIER, BARRY-22000941"]
["CROZIER, VICTORIA L-22008139"]
["CUNNINGHAM, ALMON F-22007056"]
["CUNNINGHAM, DAVID-22032490"]
["CUNNINGHAM, HELEN J-22000960"]
["CURRIE, MARK A-22000983"]
["CURRY, DAWN-22001000"]
["CURRY, MICHAEL-22016040"]
["CUTLER, NORMA-22001017"]
["DAGLEY, KODY D-22021350"]
["DAGLEY, TONY-22013717"]
["DAHL, DARREN A-22015756"]
["DAKAI-JOLLIMORE, KATHERINE A-22001041"]
["DANIELS,  TANYA-22011758"]
["DANIELS, CHRISTINE-22001066"]
["DANIELS, DOUGLAS W-22032078"]
["DANIELS, TRACY D-22019236"]
["D'ARCY, KEVIN-22019028"]
["DARNELL, LAUREL-22001082"]
["DARNELL, VIDA-22017279"]
["DAUPHINEE, ANNETTE-22001094"]
["DAUPHINEE, JOANNE-22001096"]
["DAUPHINEE, MICHAEL-22032424"]
["DAVIDSON ENO, SELENA-22011760"]
["DAVIDSON, ANDREA-22033112"]
["DAVIDSON, NATHALIE-22013137"]
["DAVIDSON, PAULA A-22018703"]
["DAVIDSON, RHIA M-22018334"]
["DAVISON, PAULA L-22021990"]
["DE ROME, CATHRYN Y-22012937"]
["DEAGLE, AMANDA M-22022558"]
["DEAMOND, VICKI N-22003048"]
["DECHAMP, PAUL-22001193"]
["DEIGHTON, LORNA-22001231"]
["DEIGHTON, WAYNE C-22001233"]
["DELANEY, SHERRENE J-22019239"]
["DELONG, BARBARA F-22001252"]
["DELONG, CHRISTINE-22014772"]
["DELONG, VALERIE R-22001260"]
["DELOREY, AMY I-22021513"]
["DELOREY, CAMERON-22015046"]
["DELORY, SHEILA A-22001280"]
["DEMILLE, SUZANNE-22001287"]
["DEMOND, SARAH J-22018431"]
["DEMONE, GLENN-22001291"]
["DEMONE, ROGER L-22001293"]
["DEMONE, RYAN-22013179"]
["DEMONE, TRISHA-22013178"]
["DEMONE, TRUDY-22010712"]
["DEMONT, CAROLYN-22001296"]
["DEMONT, TERRI L-22032583"]
["DENNIS, ANDREA D-22016845"]
["D'ENTREMONT, FRANKLIN-22033362"]
["D'EON, LEAH-22032067"]
["D'EON, MARILYN P-22001377"]
["DERABBIE, ALICIA-22022539"]
["DESANTIS, MARLIES-22008942"]
["DESCHAMPS, MARTIN-22032845"]
["DEVEAU, SHELLEY D-22021143"]
["DEWOLFE, JEFF-22001493"]
["DEWOLFE-FRASER, EMILY-22001496"]
["DEXTER, JAMES K-22001499"]
["DICKS, TERRY-22009085"]
["DIEPENVEEN, SHELLEY L-22013180"]
["DIETRICH, EUGENIA-22019050"]
["DIXON, TINA-22016110"]
["DOANE-NORWOOD, BETH-ANN L.-22008943"]
["DOBSON, WARREN-22001584"]
["DODGE, CHARLENE-22001588"]
["DODGE, SYLVIA D-22010830"]
["DODGE-BAKER, DENISE-22001593"]
["DOGGETT,  W ALEXANDER-22001596"]
["DOIG, ELIZABETH A-22015231"]
["DOLLIVER, ERIC R-22008944"]
["DOMINIX, JUDITH A-22010512"]
["DORE, MICHAEL-22016918"]
["DOREY, STACEY-22032748"]
["DOREY, TABATHA L-22018747"]
["DOREY, TYLER N-22021374"]
["DORMAN, FRASER-22001676"]
["DORNAN, JANET L-22003744"]
["DOUCET, RONALD G-22001721"]
["DOUCET, SHERRY L-22018335"]
["DOUCETTE, GAIL-22033113"]
["DOUCETTE, GREG A-22021705"]
["DOUCETTE, JOHN P-22017300"]
["DOUCETTE, TERRENCE-22001742"]
["DOUCETTE, VICKI-22017896"]
["DOWELL-HUNT, AMY-22019359"]
["DOWLING, PAUL J-22016398"]
["DOYLE, LUANNE-22001755"]
["DRAKE, ELIZABETH-22001759"]
["DUFFNEY, KERI-22015990"]
["DUFFNEY, TRACEY-22014840"]
["DUFFY-MASON, MAUREEN H-22001767"]
["DUGGAN, ALLISON-22022552"]
["DUGGAN, MATTHEW-22022551"]
["DUMOULIN, JOSEE-22031924"]
["DUNN, MARY-COLLEEN-22014389"]
["DUPERE, KARINA-22032778"]
["EAGLE-CROSS, SANDRA-22018227"]
["EASON, LAMAR-22032089"]
["EDDY, G CLAIRE-22001903"]
["EDDY, SONYA M-22014774"]
["EGILSSON, DAPHNE R-22001915"]
["EIKLE, MELISSA F-22017232"]
["EISENER, EARLEN G-22013959"]
["EISENHAUER, MARCIA-22019183"]
["EISNOR, ANTHONY-22001941"]
["EISNOR, CORINNE M-22001934"]
["EISNOR, GARY-22017580"]
["EISNOR, NANCY-22001936"]
["ELDERSHAW, BERNARD-22018688"]
["ELLIOTT, BERNADINE-22010621"]
["ELLIOTT, MARCELLE A-22018951"]
["ELLIOTT, PAUL B-22010513"]
["ELLS, WADE-22016037"]
["ELSWORTH, HAYLEY M-22021406"]
["EMINO MAILMAN, JOLENE S-22021378"]
["EMINO, KRISTA L-22010982"]
["ENO, SHANE-22002046"]
["ERNST, DAWN D-22002058"]
["ERNST, SHELIA D-22018017"]
["EVANS PHILLIP, LYNN-22002086"]
["EVANS, JAMES R-22012804"]
["EVANS, MENA-22013187"]
["EVERETT, KATHERINE-22015909"]
["FABER, GERRIT S-22018975"]
["FADER, ROBERT C-22018282"]
["FALT, CATHY J-22019250"]
["FANCY,  YVONNE-22011763"]
["FANCY, CLARE-22012773"]
["FANCY, LARRY-22018569"]
["FANCY-LANDRY, JESSICA E-22018775"]
["FANJOY, ANDREA-22022042"]
["FAULKENHAM, APRIL D.-22022377"]
["FAULKENHAM, KRISTA E-22016381"]
["FEAVER, CHRISTA G-22019328"]
["FEENER, CRAIG-22014460"]
["FEENER, LESTER-22018892"]
["FEENER, ROCKY C-22012777"]
["FERRAINA, LORI L-22006636"]
["FERRIER, JO-ANNE N-22007751"]
["FIELDING-CROFT, LINDSEY-22032896"]
["FILLMORE, ROBERT-22019026"]
["FINDLAY, DAVID-22021928"]
["FINLAY, PATRICIA-22008299"]
["FISHER, AMANDA-22015181"]
["FISK, REBECCA S-22016111"]
["FLEMING, DEBORAH J-22014776"]
["FOOTE, HEATHER-22002423"]
["FOOTE, KENNETH D-22002427"]
["FORBES, MELANIE-22016781"]
["FORD, ANNA-22002463"]
["FORD, CHRISTINE-22002465"]
["FORSYTH, J FRED-22008945"]
["FORSYTHE, L DARLENE-22002491"]
["FORWARD, JOHN-22018721"]
["FOSTER, TERRI-LYNN M-22015226"]
["FOUBERT, RANDY A-22013189"]
["FOUGERE, CHERYL-22022723"]
["FOURDRAINE, CATHERINE-22014777"]
["FOX, SHANNON B-22014780"]
["FRAELIC, GERRI L-22002548"]
["FRAIL, ELAINE D-22002552"]
["FRAIL, JENNIFER L-22018525"]
["FRAIL, JUDITH-22002554"]
["FRALICK, BARBARA-22012774"]
["FRAMP, CHRIS-22015963"]
["FRAMP, SARA-22019505"]
["FRANCIS, MICHAEL S-22021706"]
["FRASER, MONICA-22019360"]
["FRASER, RYAN W-22010516"]
["FRAUGHTON, RICHARD J-22002690"]
["FREEMAN, DIANNA-22012102"]
["FREEMAN, KATHRYN-22018613"]
["FREEMAN, MARSHA A-22002714"]
["FREEMAN, MARSHA M-22002713"]
["FRISKNEY, KAREN E-22016941"]
["FRITTENBURG, CHAD W-22011764"]
["FRY, ELIZABETH F-22016711"]
["FRYDAY, LAURA-22033115"]
["FUDGE, LANA D-22010287"]
["GALLACHER, KARA L-22017277"]
["GALLIGAN, BARBARA E-22002830"]
["GARBER, ELMER-22022724"]
["GASKELL-CHANDLER, DARLENE-22010863"]
["GATES, SARAH-22021977"]
["GAUDET, RENE-22002913"]
["GAUDET, TAMMY-LYNN-22002926"]
["GEDDES  SELIG, KAREN-22014233"]
["GEDDES, HEATHER A-22016846"]
["GEDDES, SARAH-22019072"]
["GEORGE, ADAM-22031394"]
["GERHARDT, GRETCHEN L-22007642"]
["GETSON, LAURA G.-22019041"]
["GIBSON, HESTER L-22003029"]
["GILBERT, DEBORAH-22003053"]
["GILBERT, PAUL-22013181"]
["GILBY, SHELLY-22015223"]
["GILLEN, ANDREW-22021751"]
["GILLIS, BETH C-22011765"]
["GLADWIN, ANGELA-22007643"]
["GLADWIN, CHRISTINE D-22003185"]
["GLEN, RITA  C-22016752"]
["GLOVER, VICKI D-22016999"]
["GODBOLD, ALEX-22006487"]
["GORDON, ALANNA-22017174"]
["GORE, ERIN R-22003283"]
["GOSLING, NICOLE-22014781"]
["GRACE, GAIL-22003372"]
["GRAHAM, GLORIA-22003396"]
["GRAHAM, LOUISE C-22016847"]
["GRAHAM, RENATA-22003410"]
["GRANDY, JAMES R-22006634"]
["GRANT, D. GAIL (DNU)-22021660"]
["GRANT, JAMES W-22021103"]
["GRANT, NANCY L-22014985"]
["GRANT, RUTH C-22014783"]
["GRANT, WENDY P-22003469"]
["GRAVELINE, JENNIFER-22010490"]
["GREAR, CHASTITY-22018160"]
["GREEN, BRYAN D-22018971"]
["GREENE, MICHAEL-22029170"]
["GREENOUGH, PATRICK S-22010517"]
["GREGORASH, HOLLY BRITTANY-22017815"]
["GREGORY, KARLA-22003546"]
["GRIFFIN, ANGELA I-22015908"]
["GRIFFIN, THERESA-22028976"]
["GRIFFITHS, CHARLOTTE L-22032399"]
["GRIMM, BILLIE-JEAN K-22014185"]
["GUIGUE, GRAYCE-22018051"]
["GUILBAULT, DIANE-22022068"]
["GUILLARD, MEGAN-22022419"]
["GUMMESON, ANN-22010038"]
["HACHEY, BRITTANY K-22018973"]
["HAGEN, ELLENOR G-22021425"]
["HALEY, DARREN-22003635"]
["HALEY, JENNIFER-22022497"]
["HALL, JEFFREY P.-22013183"]
["HALL, KENDRA J.-22013184"]
["HALLETT, ADAM J-22033116"]
["HALVERSON, DONNA-22013017"]
["HAMLIN, KATHY-22017222"]
["HAMM, BELINDA-22013472"]
["HANHAMS, CINDY-22019503"]
["HANSON, ARTHUR O-22021313"]
["HANSON, PAULINE A-22021459"]
["HARDING, BETH-22003726"]
["HARE, JOANNE-22007288"]
["HARLOW, DEANNA-22014759"]
["HARLOW, DEANNA-22017291"]
["HARLOW, JUNE-22017221"]
["HARNISH, HEATHER-22003741"]
["HARNISH, SHAWNA L-22017773"]
["HARRINGTON, SHERRILL L-22008627"]
["HARRISON, KERI L-22019071"]
["HARRISS, BRENNA-22033117"]
["HARTLEN, ANGELA E-22021117"]
["HARTLEN, SHANNON D-22003813"]
["HARTT, CORBIN-22033232"]
["HARTT, DAWN LEE (DNU)-22017025"]
["HARTT, ELIZABETH A-22003838"]
["HATCHER, CARRIE B-22015956"]
["HATHAWAY, HENRY-22032491"]
["HATT, ANNETTE-22015991"]
["HATT, DARRELL-22018082"]
["HATT, DEAN-22018179"]
["HATT, JANE E-22018591"]
["HATT, LISA A-22017000"]
["HATT, RAYMOND C-22014383"]
["HAUGHN, JULIE-22008572"]
["HAUGHN, SARAH E-22018902"]
["HAUGHN, WANDA-22003884"]
["HAWCO, JEFFERY-22022396"]
["HAYDEN, LAURIE-22003903"]
["HAZELTON, JAMES R-22003925"]
["HEBB, CAROLYN H-22015758"]
["HEBB, DEBRA-22003945"]
["HEBB, DIANE-22016516"]
["HEBB, GARY A-22010025"]
["HEBB, JAMES W-22010746"]
["HEBB, JOYCE E-22018040"]
["HEBB, KIMBERLEY A-22014186"]
["HEIM, GORDON-22018354"]
["HEIM, LISA-22014905"]
["HEISLER, GLENN-22003993"]
["HEISLER, JOHN A.-22033167"]
["HELM, PATRICIA-22004009"]
["HENDERSON, DAWN S-22010518"]
["HENNIGAR, CALE-22018729"]
["HENRY, SARAH L-22002845"]
["HENWOOD, VANESSA-22017511"]
["HERMAN, CARLSON-22006850"]
["HERMAN, GARY-22033237"]
["HERMAN, RANDALL K-22004081"]
["HERRIDGE, BRUCE-22004088"]
["HICKMAN, BRENT (DNU)-22014049"]
["HILCHEY, CAROL C-22014784"]
["HILCHEY-MEISNER, LYNN M-22010002"]
["HILL, DANIEL-22022387"]
["HILTZ, APRIL-22016267"]
["HILTZ, MARGARET A-22014033"]
["HILTZ, TAMMY-22015210"]
["HIMMELMAN, ANDREW-22015059"]
["HIMMELMAN, DONNA D-22017110"]
["HIMMELMAN, MARGO J-22021069"]
["HIMMELMAN, RHONDA E-22004200"]
["HIMMELMAN, SANDRA M-22004203"]
["HINDLE, PETER O-22011767"]
["HINES, ANDREW-22032102"]
["HIPWELL, CAROLE M-22008949"]
["HIRSCH, CHRISTINE-22032094"]
["HIRTLE, SHERRI L-22010520"]
["HIRTLE, TAMMY M-22018728"]
["HIRTLE, WAYNE R-22004241"]
["HOGAN, AMANDA-22032068"]
["HOLDRIGHT, CAROLYN-22018176"]
["HOLT, CLAIRE T-22017035"]
["HOLZWARTH, ELISSA J-22019276"]
["HOUGHTON, PATRICIA-22021348"]
["HOWLETT, MICHAEL-22022642"]
["HUBLEY, BEVERLEY-22016546"]
["HUBLEY, SHERRY J-22001859"]
["HUEY, BOYD D-22018720"]
["HUGHES, CAROL A-22001876"]
["HULFORD, ELIZABETH A-22001905"]
["HUMPHRIES, KELLY E-22009874"]
["HUNT, STEPHANIE-22010521"]
["HUNT, WINSTON-22018675"]
["HURSHMAN, ARTHUR-22006483"]
["HUSKILSON, HILARY S.-22022553"]
["HYNES, MICHELE-22031737"]
["HYNICK, NORINE-22016829"]
["HYSLOP, KAITLYN V-22018018"]
["INGLES, SHERRY-22022399"]
["INGLIS, CATHY D-22010039"]
["INKPEN, BIANCA (DNU)-22001997"]
["INNESS, ANDREA C-22017292"]
["ISAAC-JAMIESON, CATHERINE A-22008141"]
["JACKSON, CARLA-22022537"]
["JACKSON, GILBERT R-22019217"]
["JACKSON, MARTHA J-22018995"]
["JACKSON, ROBIN-22002066"]
["JACKSON, SHARON-22010522"]
["JACKSON-RUTLEDGE, JILLIAN E-22018705"]
["JACQUES, KATHERINE-22018013"]
["JAMES, M WENDY-22016849"]
["JAMIESON, STEPHEN L-22002124"]
["JANES, ANNA-22002129"]
["JANES, BARBARA-22019329"]
["JARDINE, DAWN L-22017019"]
["JARDINE, JERYLIN-22021760"]
["JASKOWIAK, KAJETAN-22021118"]
["JEFFERS, HEATHER-22015958"]
["JEFFERSON, BRIANNA C-22021091"]
["JEFFERSON, JENNIFER L-22019150"]
["JEFFREY, NICHOLAS P-22015995"]
["JENKINS, BRANDON-22032446"]
["JENSEN, DAVID A-22018614"]
["JENSON, SARAH-22002218"]
["JERMEY, JESSICA-22029011"]
["JESSO, GLEN D-22010705"]
["JEWER, SHARON A-22006641"]
["JEWER, VICKI-22002236"]
["JOBB, BRIAN-22002260"]
["JOBB, JOAN A-22008951"]
["JOHNSON, ALISA L-22015998"]
["JOHNSON, JO-ANN-22002351"]
["JOHNSON, RAYMOND-22010523"]
["JOHNSON, STEPHEN F-22015057"]
["JOHNSTON, GRANT A-22014787"]
["JOHNSTON, KATRINA L-22016850"]
["JOHNSTON, KYRAN-22032468"]
["JOHNSTON, MELANIE L-22014786"]
["JOHNSTON, PATRICK F-22018773"]
["JOLLIMORE, JANICE-22015228"]
["JOLLIMORE, ROGER-22002392"]
["JOLLIMORE, ROSE-MARIE V-22019517"]
["JOMSKI, OLAF-22032492"]
["JONES, KATHERINE-22002414"]
["JONES, LESLIE M-22002419"]
["JOSEPHSON, BELINDA-22002454"]
["JOSEY, HEIDI-22011459"]
["JOUDREY, ERIN L-22017027"]
["JOUDREY, JUDITH-22002473"]
["JOUDREY, KENDAL M-22016703"]
["JOUDREY, MICHAEL-22022395"]
["JOUDREY, NICOLE S-22017778"]
["JOUDREY, PETER J-22011535"]
["JOUDREY, SANDRA-22002482"]
["JOUDREY, SUSAN D-22002484"]
["JOUDREY, TIM-22016920"]
["JOUDRY, MARLENE-22032096"]
["JUDGE, BRIAN-22012806"]
["KAIZER, EMILY-22033236"]
["KANG, CHARLOTTE A-22019395"]
["KANGATA, FRANCIS-22032732"]
["KAULBACK, DAVID A-22002568"]
["KAULBACK, LISA G-22018961"]
["KAY, ALEX D-22006478"]
["KEAN, LYNETTE-22002582"]
["KEDDY, DOUGLAS G-22002598"]
["KEDDY, STACEY-22017775"]
["KEEFE, KERRY J-22018972"]
["KEELEY, LESLEY S-22019396"]
["KEITH, JOANNA-22019358"]
["KELLY SPENCER, TERRA LEE-22008954"]
["KELLY,  ANNE-22011768"]
["KELLY, EDWIN H-22008955"]
["KELSON, JASON-22033118"]
["KENDALL, SUSAN-22010165"]
["KENDALL, TREVOR-22021895"]
["KENDRICK, JENNIFER-22021878"]
["KENNEY, MARK-22010179"]
["KENT, IAN-22017430"]
["KIELY, GILLIAN-22033372"]
["KILFOIL, JENNA E-22019252"]
["KILLAM, ARTHUR-22002741"]
["KING, MARGARET-22002765"]
["KINGDON, ANITA J-22002768"]
["KIRBY, HEATHER E-22017838"]
["KIRK, ERIKA-22021732"]
["KIRK, SHAUN H-22011769"]
["KIRK-BAKER, GENEVIEVE-22002801"]
["KLUGE, BARBARA A-22018899"]
["KNAPP, BRENDA-22002808"]
["KNAPP, LARRY R-22002811"]
["KNICKLE, BRENDA A-22008751"]
["KNICKLE, HAYLAY N-22018894"]
["KNICKLE, JANE A-22021230"]
["KNICKLE, NORAH-22007644"]
["KNICKLE, SARAH-22021622"]
["KNOCK, DIANA L-22015224"]
["KOKOCKI, DAVID A.-22002841"]
["KOLIOTASSIS, KALLIOPE K-22021532"]
["KOLOFF, ANNE M-22018929"]
["KOSIBA, STACEY-22016004"]
["KOUWENBURG-HAUGHN, JULIETTE-22017568"]
["KOWALYK, CINDY-22015232"]
["KOZIK, EMMA C-22021850"]
["LABOR, SANDRA J-22019147"]
["LABRECQUE, SHARON M-22002812"]
["LAKE, ANGELA M-22008958"]
["LALIBERTE, LEE D-22017168"]
["LAMBE, ELIZABETH A-22002887"]
["LANDRY, JENNIFER-22014044"]
["LANDRY, MITCHELL G-22002963"]
["LANGFORD, JENNIFER E-22017681"]
["LANGILLE, CHARLENE V-22003003"]
["LANGILLE, DALE-22031791"]
["LANGILLE, ERICA-22033475"]
["LANGILLE, MARGARET-22003027"]
["LANGILLE, MICHELLE D-22018219"]
["LANGILLE, SYLVIA-22003046"]
["LANGILLE-HILL, CYNTHIA R-22017031"]
["LANGLEY, BEVERLEY R-22003060"]
["LANGLEY, SHAWN-22022386"]
["LANIGAN, NICOLE J.-22016856"]
["LANTZ, BENTON-22014652"]
["LARDER, TWYLA C-22003095"]
["LAWRENCE, D ELIZABETH-22010289"]
["LAYNE, COLLEEN N-22018970"]
["LEBLANC, ANGELA M-22021110"]
["LEBLANC, ANNETTE-22003159"]
["LEBLANC, CLAUDINE-22010526"]
["LEECH, CHERYL L-22018217"]
["LEECO-GRIFFTH, GLENNA-22003338"]
["LEE-RICHARD, BRENDA H-22009631"]
["LEFRANK, JOANNE-22003354"]
["LEGAY, CHRISTINA M-22019037"]
["LEGGE, STEPHANIE R-22021435"]
["LEITOLD, JOHN R-22010088"]
["LEMIRE, JENNIFER A-22013231"]
["LENIHAN, BONNIE-22013364"]
["LENIHAN, TINA-22032888"]
["LENIHAN, VALERIE L-22003400"]
["LEONARD, JACQUELINE-22003405"]
["LEONARD, SCOTT-22010527"]
["LEOPOLD, BETTY M-22003409"]
["LEOPOLD, LINDA-22014986"]
["LERUE, DONNA-22009213"]
["LESSARD, NATHALIE-22031925"]
["LEUSCHNER, ADAM-22019292"]
["LEVESQUE, LAURENCE-22031926"]
["LEVY, AIMEE B-22017297"]
["LEVY, ALISON-22014970"]
["LEVY, DIANE M-22003441"]
["LEVY-PEVERELLE,  JILLIAN D-22014789"]
["LEWIS, GERARD-22032913"]
["LIMPERT, HEATHER-22019357"]
["LINEKER, TINA M-22017022"]
["LITTLEFAIR, PAIGE-22033119"]
["LIVINGSTONE, DIANE  C-22003518"]
["LLOYD, RAYMOND-22012855"]
["LLOYD, ROBERT-22031739"]
["LOCKHART, RACHEL-22015959"]
["LOHNES, DARREN-22029174"]
["LOHNES, DAVID-22017469"]
["LOHNES, GALE-22003567"]
["LOHNES, GWENDOLYN-22016580"]
["LOHNES, JULIE E-22016505"]
["LOHNES, KEVIN-22021077"]
["LOHNES, SANDRA J-22010492"]
["LOHNES-CROFT, SUZANNE-22015230"]
["LONG, BERYL-22003584"]
["LONGARD, BETH E.P.-22022474"]
["LONGARD, KRISTA-22003600"]
["LONGLEY, MICHELLE-22003603"]
["LORDLY, JANE S-22017870"]
["LOUGHEAD, ERIC (DNU)-22003621"]
["LOUGHEED, SHAWN M-22019149"]
["LOVETT, ALICIA-22033120"]
["LOWE, STEPHANIE E-22017418"]
["LUNN, JUDITH-22010529"]
["MACDONALD, ANNE-22022547"]
["MACDONALD, JOSEPH-22003981"]
["MACDONALD, KATHERINE L-22017852"]
["MACDONALD, MORVEN-22019234"]
["MACDONALD, ROSS JR-22018067"]
["MACDONALD, SUSAN E-22004131"]
["MACDONALD, VICTORIA-22013541"]
["MACDONELL, HELEN-22004179"]
["MACDOUGALL, MEGHAN T-22021180"]
["MACDOUGALL, THOMAS C-22008143"]
["MACINNIS,  ELIZABETH W-22001937"]
["MACINTOSH CANNELLA, NANCY E (DNU)-22022025"]
["MACINTOSH CANNELLA, NANCY E-22018969"]
["MACINTYRE, LINDA M-22001987"]
["MACISAAC, GORETTI-22016858"]
["MACKAY, NATASHA L-22014997"]
["MACKAY, NATASHA-22019500"]
["MACKAY, VICKEY-22019313"]
["MACKENZIE, MARY E-22015063"]
["MACLAUGHLIN, JENNIFER L-22018403"]
["MACLEAN, PATRICIA-22010531"]
["MACLEAN, VINCE-22032671"]
["MACLEOD, JOHN G-22002497"]
["MACLEOD, KATIE M.-22033121"]
["MACLEOD, MARIE C-22002518"]
["MACLEOD, MARK-22002520"]
["MACLEOD, TRACEY-22016527"]
["MACLEOD-BRYDON, MARGARET A-22009146"]
["MACMILLIAN-MACDONALD, DIANNA M-22018283"]
["MACNEIL, ALISON A-22019153"]
["MACNEIL, SARAH J-22016857"]
["MACNEILL, DAVID T.-22010886"]
["MACNUTT, DAVID A-22021434"]
["MACPHEE, CHAD J-22016108"]
["MACPHEE, LINDA-22015964"]
["MACRAE, RODERICK-22002810"]
["MADER, ANNETTE-22002835"]
["MADER, EDWARD G-22002839"]
["MADER, J TRISHA-22021127"]
["MAGEE, SARA D-22018776"]
["MAILLETT, BRITTINY-22017774"]
["MAILLETT, CURTIS A-22018821"]
["MAILMAN, LINDA M-22002885"]
["MAILMAN, THOMAS-22032062"]
["MAILMAN, TIMMIE-22031799"]
["MALCOLM, KENNETH-22002906"]
["MALCOLM, LESLIE-22002911"]
["MANSFIELD, NADINE-22002938"]
["MARCHAND, DANIELLE-22021384"]
["MARCZAK, KATHERINE-22002995"]
["MARSHALL, GEOFFREY-22018681"]
["MARTIN, HEATHER CLAIR-22007585"]
["MARTIN, JILL COLLEEN-22016128"]
["MARTIN, SANDRA-22003139"]
["MASON, ALTA M-22017014"]
["MASON, GERALD-22003188"]
["MASON, JAMIE-22013196"]
["MASON, JANICE L-22003194"]
["MASON, MICHAEL J-22018618"]
["MASSEY, CLAYTON-22003218"]
["MASSEY, DAVID E-22011857"]
["MATTHEWS, NINA K-22017233"]
["MAYNARD, MUSTAPHA-22017033"]
["MAYO, KIMBERLY A-22007645"]
["MCAULEY, REID-22013935"]
["MCCALLUM, BRADEN-22022545"]
["MCCARTHY, GENEVIEVE-22003406"]
["MCCLAIR, JANE S-22016501"]
["MCCLARY, CHAD-22014050"]
["MCCLEMENT, TINA M-22021105"]
["MCCONNELL, ADAM R-22011552"]
["MCDADE, MARGOT-22003455"]
["MCDOW, E DEAN-22003475"]
["MCDOW, KRISTA J-22008969"]
["MCEACHERN, PAUL A-22008361"]
["MCGILL, SHERI-22003493"]
["MCGILL, STEVEN-22003495"]
["MCGRATH, JUDY P-22003505"]
["MCINNES, JOAN M-22019048"]
["MCINNIS, CYRIL G (DNU)-22003516"]
["MCINTOSH, BERNADETTE-22003527"]
["MCINTOSH, MIKE-22003533"]
["MCINTYRE, MARY R-22003541"]
["MCISAAC, PAULA M-22011775"]
["MCKEAN, DENISE T-22017021"]
["MCKINNON, ANGELA-22016107"]
["MCLELLAN, CHARLES-22003612"]
["MCLELLAN, LINDI-22003614"]
["MCMULLEN, JENNIFER-22032694"]
["MCNALLY, KATHY J-22003651"]
["MCNAUGHTON, PAIGE M-22021926"]
["MCNEILL, WENDY-22003690"]
["MCSWEENEY, AMANDA A-22021427"]
["MEAD, GERALD-22009161"]
["MEISNER, BARRI-22003771"]
["MEISNER, BONNIE M-22017872"]
["MEISNER, JANET-22003774"]
["MEISNER, ORVAL C-22003780"]
["MEISTER, CONNIE-22014792"]
["MELLOY, TERRY-22003830"]
["MERKLEY, ANNE J-22019173"]
["MESSENGER, TROY-22021752"]
["METCALFE, SHELLEY-22003871"]
["METCALFE, TERRY S-22003873"]
["MILLER, JEFFREY A-22003958"]
["MILLER, RUSSELL-22003975"]
["MILLER, SANDRA-22003978"]
["MILLETT, CINDY-22014793"]
["MILLETT, PETER-22019362"]
["MILLMAN, SALLY-22003997"]
["MILOSEVICH, MICHAEL-22004020"]
["MINNICK, KEVIN C-22017006"]
["MISNER, PAUL-22004024"]
["MITCHELL, CYNTHIA-22008962"]
["MITCHELL, MICHELE-22011597"]
["MITCHELL, SANDRA-22011590"]
["MOASE, JOCELYN ADELE-22021927"]
["MONAHAN, ERRIN-22014795"]
["MONAHAN, EVAN-22014794"]
["MONK, ASHLEY D-22018904"]
["MONTGOMERY, WANDA-22032401"]
["MOOERS, DARLENE-22016860"]
["MOORE, ANN (DNU)-22004089"]
["MOORE, DARCIE M-22019219"]
["MOORE, ELISABETH-22004105"]
["MOORE, KATERINE R-22013198"]
["MOORE, SHIRLEY A-22004124"]
["MOORE, SYLVIA D-22004130"]
["MOORE, WENDY-22032886"]
["MORASH, ANDREW C-22021527"]
["MORASH, PATRICIA-22004149"]
["MOREAU, DONALD (DNU)-22004153"]
["MORGAN, BRIDGETT V-22019073"]
["MORGAN, MELISSA J-22019249"]
["MORGAN, ROSLYN B.-22033410"]
["MORIARITY, CHRISTINE-22004173"]
["MORRIS, R TERRY-22004224"]
["MORRISON, MISTY ROSE-22021619"]
["MOSHER, RICHARD-22032425"]
["MOSHER, STEPHANIE-22016862"]
["MOSSMAN, ALLISTER B-22004282"]
["MOSSMAN, HUGHIE-22018592"]
["MOSSMAN, ROXANNE L-22018616"]
["MOULE, JULIA G-22014755"]
["MUIR, ALLAN-22014797"]
["MUIR, ERIKA D-22014796"]
["MULLEN, AMANDA-22032749"]
["MULLEN, BETH M-22016425"]
["MULLEN, JANE-22004322"]
["MULLEN, JULIANA S-22016547"]
["MULLEN, VAUGHN H-22021628"]
["MUNRO,  KRYSTAL R-22019146"]
["MUNRO, TINA-22004344"]
["MUNROE, ELAINE P-22021948"]
["MUNRO-GARLAND, PAULA L-22010614"]
["MURPHY, COURTNEY R-22015997"]
["MURRAY, BRIAN-22004403"]
["MURRAY, DEBORAH-22004413"]
["MYLER, NATASHA D-22021200"]
["MYRA, SHON-22032846"]
["NADEAU, SOPHIE-22032777"]
["NAUGLER, DEVAN S-22017455"]
["NAUGLER, JENNIFER-22022726"]
["NAUGLER, JOEL-22022398"]
["NAUGLER, PAUL D-22004516"]
["NAUGLER, PETER P-22004519"]
["NAUGLER, ROXANNE-22014387"]
["NAUGLER, WAYNE-22004521"]
["NAUSS, BARBARA-22004526"]
["NAUSS, KELLI L-22004528"]
["NAUSS, MISTY-22004532"]
["NAUSS-DONAT, MEGHAN S-22008963"]
["NEAVES, KYLE M-22014221"]
["NEWELL, JENNIFER-22016475"]
["NICHOLS-MCCONNELL, MELISSA L-22010706"]
["NICKERSON,  LORI-22000729"]
["NICKERSON, LORNA A-22004964"]
["NICKERSON, PAUL S-22017143"]
["NICKERSON, STEPHEN J-22004619"]
["NOBLE, KARL-22019030"]
["NODDING, JEFF S-22008964"]
["NODDING, WADE D-22008887"]
["NOEL,  MARCUS T-22011776"]
["NORMAN, JASON-22032936"]
["NORMAN, JEFF B-22004681"]
["NORWOOD, HEATHER A-22018180"]
["NOWE, DEREK M-22004688"]
["NOWE, MICHAEL-22015759"]
["NUNN, LAUREN-22022536"]
["OESTEBO, CAROL J-22004708"]
["O'HEARON, MICHAEL-22011777"]
["OICKLE, ALEX M-22014385"]
["OICKLE, ANGELA I-22019314"]
["OICKLE, BRIAN H-22004719"]
["OICKLE, EVELYN-22004722"]
["OICKLE, JESSE M-22022008"]
["OICKLE, VIRGINIA A-22004728"]
["OICKLE-CONRAD, CAROLYN-22009033"]
["O'LAUGHLIN, PATRICK-22016106"]
["O'LEARY-MORRIS, MARILYN-22031395"]
["OLMSTEAD, SARA E-22017851"]
["O'QUINN, DAVID J-22014191"]
["ORMAN, KRISTA A-22015996"]
["OSMOND, SHERRY-22019317"]
["OWEN, NANCY J-22021273"]
["OZON, JOANNE M-22021089"]
["PAGE, CYNTHIA-22033337"]
["PAGE, R MILES-22004804"]
["PAGE, WENDY C-22018974"]
["PANCZYK, KIMBERLY-22008629"]
["PAQUETTE, CATHERINE J-22019521"]
["PARKER, AMY N-22021925"]
["PARKS, CHARLOTTE-22004867"]
["PARLEE, RICHELLE J-22016942"]
["PETTIGREW, SUSAN-22005016"]
["PEVERIL, AMY S-22018777"]
["PEVERIL, JO-ANN-22022001"]
["PHILLIPS, CHRIS-22005038"]
["PHINNEY, HARRY-22013190"]
["PIERCEY, JILL C-22021708"]
["PLUMMER, BRENDA-22033424"]
["PORTER, MARY-22010023"]
["PORTER, SHEILA (EFT)-22032166"]
["POTTIE, ANN E-22021793"]
["POTTIE, CRAIG S-22005155"]
["POULIN, NICHOLAS J-22019051"]
["POULIOT, ISABELLE-22032779"]
["POUND, MARK H-22021116"]
["POWER, BERTON E-22005178"]
["POWER, KAILA A-22018704"]
["POWER, KEVIN M-22005190"]
["POWER, ROXANNE-22005197"]
["POWERS, LLOYD M-22005203"]
["PROSSER, AMANDA I-22018222"]
["PROVO, TERESA-22022499"]
["PUBLICOVER, DONNA C-22010535"]
["PURCELL, VERONICA-22029684"]
["PURDUE, ANGELA-22005255"]
["PYNCH-WORTHYLAKE, NANCY E (DNU)-22015093"]
["RACINE, DIANA J.-22017636"]
["RAE, STERLING A-22005288"]
["RAFUSE, ISAAC-22018623"]
["RAFUSE, KAYLA  P-22021383"]
["RAFUSE, MARLA G-22005292"]
["RAFUSE, SUSAN R-22005302"]
["RAHEY, CATHERINE M-22015690"]
["RAINE, WILLIAM E-22018223"]
["RALOFF, JEFFREY K-22021949"]
["RAMEY, JEANIE I-22007418"]
["RAMEY, JULIE-22010536"]
["RAMEY, RUSSELL-22005317"]
["RAMEY, WADE V-22007414"]
["RAMSAY, ERIN-22014799"]
["RANDALL, LINDSAY-22019356"]
["RAWDING, DEANNA-22005340"]
["RAWDING, JOAN-22011783"]
["RAWDING, RODNEY A-22005345"]
["RAWDING, SCOTT H-22005347"]
["RAWDING, YVETTE-22005351"]
["REDMOND, CHRISTINE L-22017464"]
["REDMOND, JACKIE-22011589"]
["REDMOND, LORNE-22005395"]
["REEVES, MARY ELLEN-22005398"]
["REEVES, MICHELLE L-22021407"]
["REEVES, REBECCA-22022554"]
["REID, JOBY-22022378"]
["REINHARDT, RONALD D-22005426"]
["RENOUF, JAMES A-22013235"]
["RHODENIZER, BARBARA-22008968"]
["RHODENIZER, JEAN-22005449"]
["RHODENIZER, JEFFREY J-22019045"]
["RHODENIZER, UNA M-22005451"]
["RHODENIZER, VICKI D-22005453"]
["RHYNO, LLOYD A-22008684"]
["RICHARD, MICHELLE-22013580"]
["RICHARDS, MICHELE L-22012227"]
["RICHARDS, NANCY-22005526"]
["RIMMINGTON, JANET M-22016182"]
["RINGER, LUCY-22005555"]
["RINGER, MARSHA-22011046"]
["RINGER, MICHAEL D.-22022500"]
["RIPLEY,  ANGELA-22011785"]
["RISSER, CATHERINE E-22031734"]
["RISSER, STEVEN G-22010089"]
["RISSER, VIVIAN-22031969"]
["RITCEY, SHERRY R-22013982"]
["RITCHIE, CATHY-22005580"]
["ROACH, JONATHAN J-22018359"]
["ROBAR, CATHERINE-22005595"]
["ROBAR, CLAUDIA M-22008410"]
["ROBARTS, ROXANNE F-22005598"]
["ROBERTS, CORBY-22015953"]
["ROBERTS, TRINA J-22017075"]
["ROBINSON, CLAIRE E-22022037"]
["ROBINSON, MIRANDA L-22017024"]
["ROBLEE, LAURA L-22005663"]
["ROCK, REBECCA-22005670"]
["RODENHIZER, ELSIE-22005676"]
["ROGERS, MARCIA D-22014800"]
["ROGERS, NANCY L-22017294"]
["ROPER, CHRISTOPHER-22008970"]
["ROSE, KATHERINE-22033122"]
["ROSE, SHELLEY-22031970"]
["ROSS, MICHAEL I-22019094"]
["ROWE, ANDREW C-22019070"]
["ROWE, GWENDOLYN K-22015907"]
["ROWLANDS, DONNA D-22014746"]
["ROY, ASHLEY E-22016795"]
["ROY, BURTON S-22005801"]
["ROY, EMILY-22014802"]
["ROY, GARY-22014407"]
["ROY, MARIE-PASCAL-22022420"]
["ROY, WILLIAM-22011168"]
["RUSSELL, AARON-22016943"]
["RUSSELL, BRENDA J-22005841"]
["RUSSELL, CHRISTINE-22019277"]
["RUSSELL-BOND, JACQUELINE M-22032380"]
["RYAN, ADRIENNE D-22015220"]
["RYAN, ANNE C-22019355"]
["RYAN, ELIZABETH-22033123"]
["RYAN, LAWRENCE G-22005878"]
["SAMPSON, DIANE M-22019151"]
["SAMPSON, DONNA-22005923"]
["SAMPSON, JANEAN-22022548"]
["SAMSON, MARY LOU-22016105"]
["SANFORD-LONG, MARGARET-22006017"]
["SANGSTER, MICHAEL  W-22006026"]
["SANTORO, MELISSA J-22021531"]
["SARTY, ALEX-22033166"]
["SARTY, DWAYNE-22015760"]
["SARTY, JOSEPH-22006040"]
["SARTY, MARILYN-22006041"]
["SARTY, ROBERT-22016932"]
["SARTY, SUZANNE-22016278"]
["SARTY, WILLIAM-22029034"]
["SATTLER, NICOLA-22017439"]
["SAULNIER, TERRY L-22004349"]
["SAULNIER-TIDD, ANNE M-22011972"]
["SAWLER, LEE-22032402"]
["SAWLER, NATALIE-22033314"]
["SAWLER, WENDY D-22007415"]
["SCARFE, JULIE-22019142"]
["SCOTT, ANGELA-22009165"]
["SCOTT, GREG-22016864"]
["SCOTT, LORI-22029516"]
["SEAMONE, KAREN L.-22011786"]
["SELIG, ANDREW-22022473"]
["SELIG, CHERYL-22017947"]
["SELIG, JOHN M-22018634"]
["SELIG, SARAH L.-22015993"]
["SELIG, WADE E-22004509"]
["SEWELL, RHONDA L-22032471"]
["SHAND, JONATHAN-22033124"]
["SHANKS, GINA-22033125"]
["SHATFORD, ROSS L-22021762"]
["SHAW, CATHERINE A-22010540"]
["SHERRY, NANCY J-22022544"]
["SHURKO, JOHANNA K-22018225"]
["SILVER, ANNE M-22013236"]
["SILVER, AVICE A-22016830"]
["SILVER, PETER R-22004634"]
["SILVER, TERESE-22014998"]
["SILVER-CORKUM, VERLENE G-22008411"]
["SIMMONS, DARRYL-22021426"]
["SIMMS, LYNN-22013192"]
["SIMMS, VERNON-22022727"]
["SIMPSON, JUANITA M-22004648"]
["SIMPSON, STEPHANIE J-22007292"]
["SINCLAIR, CRAIG-22033163"]
["SINCLAIR, GAIL A-22017298"]
["SITEMAN, STEVEN-22022026"]
["SKINNER, JUSTINE R-22021373"]
["SKINNER, SHELLY L-22017144"]
["SKOREYKO,  LYDIA-22011787"]
["SLAUENWHITE, ANGELA-22016481"]
["SLAUENWHITE, JANET H-22004699"]
["SLAUENWHITE, TAMMY L-22018730"]
["SLAUENWHITE, WAYNE-22004702"]
["SMART, NATHAN-22016471"]
["SMART, REBECCA L-22014801"]
["SMITH, ANN-22004712"]
["SMITH, ASHLEY-22004716"]
["SMITH, CLAYTON-22031721"]
["SMITH, FRANCINE E-22016866"]
["SMITH, JAMES-22018633"]
["SMITH, KALIN-22004779"]
["SMITH, KELLI-JEANE-22007291"]
["SMITH, PATRICIA S-22018536"]
["SNAIR, LESLIE C-22004847"]
["SNAIR, TERESA-22018757"]
["SNARBY, KRISTOPHER-22013195"]
["SNOOK, MICHELLE E-22021753"]
["SNOW, BRIAN J.-22021119"]
["SNOW, JENNIFER D-22021126"]
["SNYDER, CURTIS B-22004857"]
["SNYDER, JAMES-22006630"]
["SNYDER, KRYSTAL R-22004862"]
["SNYDER, MICHAEL-22016933"]
["SNYDER, TANYA-22019499"]
["SOARES, STACEY-22001492"]
["SODE, NATASHA D-22017429"]
["SORENSEN, KELLY-22022540"]
["SPENCER, BARRY D-22004896"]
["SPENCER, DIANE E-22005078"]
["SPENCER, TRACI L-22019029"]
["SPENCER-WEARE, JENNIFER J.-22013194"]
["SPERRY, RYAN N-22017814"]
["SPRAGUE, CANDACE-22017404"]
["SQUIRES, IAN-22033126"]
["STEAD, JENNIFER-22019364"]
["STEELE, AMY-22014915"]
["STEENBEEK, CATHY L-22017147"]
["STEEVES, DENNIS E-22004948"]
["STEEVES, GORDON P-22019052"]
["STEEVES, MARY-22004950"]
["STEVENS, CHARMAINE C.-22022732"]
["STEVENS, KATHERINE D-22017963"]
["STEWART, ANDREW-22018329"]
["STEWART, ANGELA-22010291"]
["STEWART, ANN M-22021795"]
["STEWART, CATHERINE L-22006639"]
["STEWART, CERI  A-22008972"]
["STEWART, MARINA-22018328"]
["STEWART, MICHAEL-22005003"]
["STEWART, RICHARD B-22018570"]
["STEWART, TERRY-22010090"]
["STIRLING, DANIELLE-22022550"]
["STOCKDALE, ANNE P-22008973"]
["STOCKER, SHELLEY A-22018021"]
["STONE, STEPHEN D-22021794"]
["STORM, MAI-LING-22013296"]
["STORM, MEYNDERT J-22018523"]
["STORM, UNA C-22005041"]
["STRAUBEL, PETER F-22005048"]
["STRINGER, KATRINA R-22019251"]
["STRONG, AMY K-22019095"]
["STRONG, CAMERON S-22018020"]
["STRONG, EMILY L-22017903"]
["STROWBRIDGE, SIDNEY-22007416"]
["STRUM, MELINDA-22007293"]
["STUART, AMANDA J-22014803"]
["STYMIEST-TATCHELL, SHANNON H-22021623"]
["SULLIVAN, AMY  N-22005084"]
["SULLIVAN-CORNEY, JUDITH (DNU)-22021934"]
["SURETTE, GARREN-22022643"]
["SUTHERLAND, ELIZABETH M-22005168"]
["SUTHERLAND, GEORGE D-22029180"]
["SUTHERLAND, GREG A-22008974"]
["SUTHERLAND, ROBERT-22005179"]
["SWAINE, JACQUELINE M-22005184"]
["SWEETMAN, MIKE-22032103"]
["SYKES, VALERIE L-22021707"]
["SYLVESTER, JEFFREY J-22015692"]
["SYMES, TODD-22011789"]
["TANNER, BENNY G-22012775"]
["TANNER, DIANE K-22010649"]
["TANNER, LARRY-22015106"]
["TANNER, LISA-22009928"]
["TANNER, MEGHAN M-22021673"]
["TANNER, SALLY-22014916"]
["TANNER, TINA-22017394"]
["TANNER, WENDY M-22005219"]
["TANNER-EISENHAUER, BELINDA-22008938"]
["TATTRIE, WADE-22017462"]
["TAYLOR, JOHN R-22009493"]
["TAYLOR-FOLEY, SUE (DNU)-22005256"]
["TAYS, PHILIP C-22018577"]
["THERIAU, ERNEST L-22013983"]
["THERIAULT, PEGGY-22017510"]
["THERIAULT, PHILIP M-22009157"]
["THERRIEN-SAMSON, LEA-22022421"]
["THOMAS, ETHAN J-22018452"]
["THOMAS, PATRICIA A-22021626"]
["THOMPSON, AARON-22005352"]
["THOMPSON, JENNIFER D (DNU)-22021530"]
["THOMPSON, KIM-22017939"]
["THOMSON, TOM-22013172"]
["THORBURN, STACY D-22006492"]
["THORBURNE, CRYSTAL G-22008522"]
["THORNHILL, NANCY-22018948"]
["TIBERT, KIMBERLEY-22003951"]
["TIDD, BARBARA A-22017902"]
["TINNEY, MARY-LIN-22011824"]
["TOUSSAINT, TRAVIS R-22019174"]
["TOWNSEND, PATSY-22005438"]
["TREMBLETT, PEGGY M-22010040"]
["TRETHEWEY, PAMELA (DNU)-22014804"]
["TRUDEAU, CYNTHIA L-22011525"]
["TURNER, L  ALLAN-22005518"]
["TURNER-WAMBOLDT, DAWN-22005527"]
["TUTTY, JOHN J-22010543"]
["TUTTY, PHYLLIS E-22005535"]
["TUTTY, SARAH A-22010507"]
["TZAGARAKIS-FOURNIER, NANCY-22032088"]
["UHLMAN, DAWN-22005543"]
["UHLMAN, JENNIFER-22015910"]
["UHLMAN, JOANNE L-22005545"]
["UHLMAN, MYA-22014805"]
["UHLMAN, RONALD R-22005547"]
["UMLAH, SARAH-22019354"]
["UNSWORTH, KELLY L-22005553"]
["UNTERWEGER, SYLVIE-22019000"]
["UPTON, ROBERT-22022367"]
["VAN DONINCK, BERNIE W-22005590"]
["VAN DYK, KIMBERLEY-22005592"]
["VANDEMOORTELE, DAVID A-22011791"]
["VANDERTOORN, JILLIAN L-22005610"]
["VANDERTOORN, MICHAEL-22005612"]
["VANDERWAL,  JEFFREY W-22011792"]
["VAN'T HOF, JOHN M-22007761"]
["VARNER, JENNIFER E-22021647"]
["VARNER, NANCY-22005622"]
["VEINOT, ELSA MAE-22014397"]
["VEINOT, JILL-22017286"]
["VEINOT, JULIE A-22021674"]
["VEINOT, THEODORE-22005644"]
["VEINOT-GATES, JOYCE-22005645"]
["VEINOTTE FROWD, TANYA-22011793"]
["VEINOTTE, BONNIE D-22005650"]
["VEINOTTE, BONNIE-22015849"]
["VEINOTTE, CHERYL-22004776"]
["VEINOTTE, HOLLY-LYNN A-22017148"]
["VERGE, SELENA-22019367"]
["VERGE-BOLLIVAR, MICHELLE E-22008142"]
["WADDELL, BEVERLY-22012503"]
["WADE, ADAM-22022400"]
["WADE, KORY E-22017295"]
["WADE, MARTINE-22019361"]
["WAGNER, GERALDINE-22005683"]
["WAGNER, J LEANDER-22005679"]
["WAGNER, MARY L-22015519"]
["WAGNER, PETA-22005685"]
["WAGNER, VERNA-22005690"]
["WAGNER-WHYNOT, CORINNA L-22009346"]
["WALKER, CRYSTAL M-22005291"]
["WALKER, MARGARET A-22005697"]
["WALKER, PENELOPE A-22019047"]
["WALL, KAREN M-22015960"]
["WALLET, FAYE-22022557"]
["WALSH,  SHELLEY M-22011780"]
["WALSH, SHEILA J-22005737"]
["WALTERS, GORDON-22015776"]
["WALTERS, RHONDA E-22021980"]
["WALTERS, SHEILA-22015955"]
["WAMBACK, TERRY M-22005748"]
["WAMBOLDT, DONNA H-22005752"]
["WAMBOLDT, SHEILA-22014807"]
["WAMBOLT, BONNIE D-22019036"]
["WAMBOLT, STEPHANIE K-22016712"]
["WANNAMAKER, CHRIS D-22021627"]
["WARD, BETTY-LOU-22005757"]
["WARD, CHRISTINE A-22014808"]
["WARD, MICHAEL-22005761"]
["WARDELL, PATRICK R-22018772"]
["WARR, AMY L-22019175"]
["WATERMAN, CHRISTOPHER-22014809"]
["WATSON, PHILIP L-22005793"]
["WEAGLE, BARBARA-22016916"]
["WEAGLE, CANDICE A-22021851"]
["WEARE, JEFFREY D-22017807"]
["WEBB, AGUSTUS-22018090"]
["WEBB, MARTY DARREN-22017034"]
["WEBB, TERESA-22019218"]
["WEBBER, DIANE L-22013238"]
["WEIR, WENDELL-22022646"]
["WELCH, ADRIENNE-22011955"]
["WELLMAN, STACEY-22005842"]
["WELSFORD, BARBARA E-22010078"]
["WELSFORD, LINDSAY E-22017904"]
["WENTZELL, ALEX-22019031"]
["WENTZELL, ANN M-22008975"]
["WENTZELL, AUDREY C-22005859"]
["WENTZELL, CATHERINE-22005861"]
["WENTZELL, CATHY-22019312"]
["WENTZELL, CHERYL-22014845"]
["WENTZELL, DIANE-22005865"]
["WENTZELL, JULIE-22010544"]
["WENTZELL, KRISTEN D-22021201"]
["WENTZELL, MARGARET A-22005871"]
["WENTZELL, MARGO G-22011794"]
["WENTZELL, MYLES-22005874"]
["WENTZELL, PATRICIA-22005876"]
["WENTZELL, PAUL-22015767"]
["WENTZELL, SELENA D-22014068"]
["WENTZELL, SHARON L.-22008976"]
["WESLEY, DOROTHY D-22021650"]
["WEST, DONNA M-22005885"]
["WESTHAVER, BOBBI-JO-22022397"]
["WESTHAVER, WALTER C-22005892"]
["WHALEN, KELLY-22011554"]
["WHALEN, PAMELA-22005898"]
["WHEATLEY, KATELYN Y-22018320"]
["WHITE, ALLAN-22032921"]
["WHITE, DAVID H-22016001"]
["WHITE, JODY A-22021340"]
["WHITEHOUSE, LAURA K-22021621"]
["WHYNOT, AMY-DAWN-22018327"]
["WHYNOT, CHRISTINA L-22019042"]
["WHYNOT, CHRISTOPHER-22014118"]
["WHYNOT, DARRYL-22016889"]
["WHYNOT, DEVIN W-22019027"]
["WHYNOT, DONALD M-22021529"]
["WHYNOT, DONALD-22005983"]
["WHYNOT, DONNA L-22005985"]
["WHYNOT, GARY-22033343"]
["WHYNOT, GLORIA R-22013239"]
["WHYNOT, GREG-22005989"]
["WHYNOT, JAMES-22005991"]
["WHYNOT, JANE A-22010491"]
["WHYNOT, JOANNE M-22022161"]
["WHYNOT, JOSHUA G-22017287"]
["WHYNOT, LESLEY-22005993"]
["WHYNOT, LORNA M-22017026"]
["WHYNOT, NICHOLAS W-22019032"]
["WHYNOT, ORRIS J (DNU)-22005994"]
["WHYNOT, RAYMOND K.-22016570"]
["WHYNOT, ROBERT J-22005998"]
["WHYNOT, RODNEY E-22013907"]
["WHYNOT, SHELLY C-22013718"]
["WILBAND, DIANE-22014811"]
["WILE, DANIELLE N-22018088"]
["WILE, GAIL-22033165"]
["WILE, KEVIN T-22006008"]
["WILE, LISA D-22010292"]
["WILE, LORRAINE B-22015768"]
["WILE, WANDA-22006011"]
["WILKINS, RUTH W.-22021603"]
["WILKINS, RUTH-22033127"]
["WILKINSON, STEPHEN P-22021686"]
["WILLIAMS, ALISON B-22013174"]
["WILLIAMS, ERIC-22018580"]
["WILLIAMS, LINDA L-22019270"]
["WILLIAMS, MARK E-22019294"]
["WILLIAMS, ROSANNE L-22016929"]
["WILLIAMSON, CHARLES-22006048"]
["WILLIAMSON, MARTHANNE-22021106"]
["WILLMAN, MELISSA T-22015961"]
["WILLOW, LINDSAY-22022432"]
["WILSON, ANNE-22006062"]
["WILSON, CATHY-22016277"]
["WILSON, LAURA M.-22033128"]
["WILSON, MICHAEL J-22022020"]
["WILSON, MICHAEL R-22015957"]
["WILSON, PATRICIA-22021721"]
["WILSON, STEPHANIE-22008628"]
["WIMMER, GLYNDA D-22006071"]
["WINFIELD, MICHAEL-22032634"]
["WINSOR, ZOE (DO NOT USE)-22021108"]
["WINSOR, ZOE E-22019365"]
["WINTERS, ELAINE M.-22015769"]
["WISSLER, CHRISTINA-22014748"]
["WOLFE JR, ARNOLD J-22018727"]
["WOLFE, C ANN-22004371"]
["WOLFE, VICKIE-22031693"]
["WOLSTENHOLME, JONATHAN-22022498"]
["WOOD, LAUREN-22021885"]
["WOODFORD-COLLINS, ELIZABETH-22018405"]
["WOODLAND, SHONETH M-22004429"]
["WOODSWORTH, STEPHANIE-22004434"]
["WOODWORTH, CARMEN-22004437"]
["WOODWORTH, LESLIE-ANNE-22016928"]
["WOODWORTH, RONALD  F-22012776"]
["WOODWORTH, SHELLEY A-22006628"]
["WOOTTEN, TIFFANY D-22019296"]
["WORTHYLAKE, MICHAEL-22016002"]
["WRIGHT, JENNIFER-22021158"]
["WYATT, KAREN B-22016181"]
["WYER, ANNETTE-22013579"]
["YOUNG, DARLENE C-22014461"]
["YOUNG, TIFFANY-22022541"]
["ZINCK, AARON D-22021145"]
["ZINCK, ANNETTE-22013205"]
["ZINCK, GARY R-22004558"]
["ZINCK, MARLENE-22008977"]
["ZINCK, NANCY-22021765"]
["ZINCK, ROBBIE-LYNN-22032090"]
["ZINCK, ROBERT WILLIS-22004564"]
["ZINCK, SHAWNA L-22017028"]
["ZINCK, TONY-22010559"]
["ZINCK, WANDA-22015031"]
["ZINN, TRAVIS S-22009930"]
["ZWICKER, BRENDA-22017401"]
["ZWICKER, CATHERINE E-22013965"]
["ZWICKER, CORY-22032889"]
["ZWICKER, DEVIN-22021185"]
["ZWICKER, JOEL-22033467"]
["ZWICKER, MICHAEL A-22004581"]

{"sheet":"Base_ Locations","index":3,"n_rows":32,"n_cols":1,"rows_kept":32,"cut":false,"hidden":true,"merged":[]}
["Aspotogan Consolidated"]
["Autism Centre"]
["Bayview Community School"]
["Big Tancook Elementary"]
["Bluenose Academy"]
["Board Office"]
["Bridgewater Bus Garage"]
["Bridgewater Elementary"]
["Bridgewater Jr/Sr High School"]
["Chester Area Middle School"]
["Chester District Elementary"]
["Dr. JC Wickwire Academy"]
["Forest Heights Community School"]
["Greenfield Elementary"]
["Hebbville Academy"]
["Liverpool Regional High "]
["Innovative Learning Center"]
["Mahone Bay Alternate"]
["New Germany Elementary"]
["New Germany Rural High"]
["New Ross Consolidated"]
["Newcombville Elementary"]
["North Queens Bus Garage"]
["North Queens Community School"]
["Park View Education Centre"]
["Pentz Elementary"]
["Petite Riviere Elementary"]
["Queens Adult High (old Gorham)"]
["South Queens Middle School"]
["South Shore Regional School Board"]
["Verge (subset of BHS)"]
["West Northfield Elementary"]

{"sheet":"Mileage","index":4,"n_rows":3,"n_cols":2,"rows_kept":3,"cut":false,"hidden":true,"merged":[]}
[0.42309999999999998,"2016-17"]
[0.44230000000000003,"2015-16"]
[0.37340000000000001,"2016-17 16001 and over"]

{"sheet":"Mileage (suggested guidelines)","index":5,"n_rows":100,"n_cols":4,"rows_kept":100,"cut":false,"hidden":false,"merged":[[40,0,40,1],[4,0,6,0],[0,0,0,3],[1,0,1,3],[2,0,2,3],[38,0,38,1],[39,0,39,1]]}
["SOUTH SHORE REGIONAL SCHOOL BOARD"]
["BOARD OFFICE KILOMETRE CHART"]
["SUGGESTED GUIDELINES"]
[]
["From the Bridgewater Board Office","To ","One Way","Return"]
[null,"Aspotogan Consolidated",66,{"$f":"C6*2","v":132}]
[null,"Bayview Community School",19.5,39]
[null,"Big Tancook Elementary",50.5,101]
[null,"Bridgewater Elementary",1.5,3]
[null,"Bridgewater Jr/Sr High School",1.5,3]
[null,"Chester Area Middle School",48,96]
[null,"Chester District Elementary",48,96]
[null,"Dr. JC Wickwire Academy",48.5,97]
[null,"Forest Heights Community School",38,76]
[null,"Gold River Western Shore",31,62]
[null,"Greenfield Elementary",35,70]
[null,"Hebbville Academy",9,18]
[null,"Liverpool Regional High ",48,96]
[null,"New Germany Elementary",35,70]
[null,"New Germany Rural High",35,70]
[null,"New Ross Consolidated",60,120]
[null,"Newcombville Elementary",10,20]
[null,"North Queens Community School",51,102]
[null,"Park View Education Centre",2,4]
[null,"Pentz Elementary",13.5,27]
[null,"Petite Riviere Elementary",27.5,55]
[null,"Queens Community Education",47.5,{"$f":"C27*2","v":95}]
[null,"South Queens Middle School",47,94]
[null,"West Northfield Elementary",12,24]
[null,"Other Locations"]
[null,"Airport (Halifax International)",132,{"$f":"C31*2","v":264}]
[null,"Dartmouth",105,{"$f":"C32*2","v":210}]
[null,"Halifax",103,{"$f":"C33*2","v":206}]
[null,"Truro",175,{"$f":"C34*2","v":350}]
[null,"Yarmouth Board Office",204,{"$f":"C35*2","v":408}]
[]
["UPDATED: August 20, 2015"]
[]
["SOUTH SHORE REGIONAL SCHOOL BOARD"]
["INTER-SCHOOL DISTANCES KILOMETRE CHART"]
["SUGGESTED GUIDELINES"]
["From","To School","One Way"]
["Aspotogan Consolidated","Chester Area Middle School",26]
[null,"Chester District Elementary",26]
["Bayview Community Schoool","Lunenburg Academy ",14]
[null,"Lunenburg Jr/Sr High School",13.5]
[null,"Bridgewater Jr/Sr High School",22.5]
["Bluenose Academy","Bridgewater Jr/Sr High School",20]
[null,"Chester Area Middle School",28]
[null,"Forest Heights Community School",15]
[null,"Park View Education Centre",22]
[null,"New Germany Rural High",47]
["Chester Schools","Forest Heights Community School",13]
[null,"New Ross Consolidated",25]
[null,"Gold River Western Shore",12]
[null,"Bayview Community Schoool",25.5]
["Dr. JC Wickwire Academy","Gorham",1]
[null,"Milton Centennial Elementary",5]
[null,"Mill Village Consolidated",18.5]
["Forest Heights Community School","New Ross Consolidated",20]
[null,"Chester Area Middle School",13]
[null,"Bridgewater Jr/Sr High School",33.5]
[null,"Park View Education Centre",37]
["Queens Community Ed","Milton Centennial Elementary",4]
[null,"Mill Village Consolidated",17.5]
[null,"Greenfield Elementary",32.5]
["Greenfield Elementary","Newcombville Elementary",24.5]
["Hebbville Academy","Bridgewater Jr/Sr High School",7.5]
[null,"Newcombville Elementary",19]
[null,"Petite Riviere Elementary",18.5]
[null,"Pentz Elementary",4.5]
[null,"Park View Education Centre",11]
["Liverpool Regional High ","South Queens Jr. High",1]
[null,"Park View Education Centre",50]
[null,"Bridgewater Jr/Sr High School",48.5]
[null,"Hebbville Academy",39]
[null,"North Queens Schools",50.5]
["Bluenose Academy","Bridgewater Jr/Sr High School",20]
[null,"Chester Area Middle School",28]
[null,"Forest Heights Community School",15]
[null,"Park View Education Centre",22]
[null,"New Germany Rural High",47]
["New Germany Elementary","West Northfield Elementary",15]
[null,"Bridgewater Elementary",28.5]
["New Germany Rural High","Bridgewater Jr/Sr High School",25]
[null,"Park View Education Centre",26]
[null,"Forest Heights Community School",39]
["North Queens Schools","Greenfield Elementary",34.5]
[null,"New Germany Rural High",41.5]
[null,"Centre",65]
["Newcombville Elementary","Bridgewater Elementary",12]
[null,"West Northfield Elementary",20]
["Pentz Elementary","Petite Riviere Elementary",14]
["via ferry","Riverport & District Elementary",11]
["Petite Riviere Elementary","Hebbville Academy",18.5]
["South Queens Jr. High","Hebbville Academy",38]
[null,"North Queens Schools",51.5]
["West Northfield Elementary","Bayview Community Schoool",31]
[null,"New Germany Rural High",15]
[null,"Park View Education Centre",10]

{"sheet":"Positions","index":6,"n_rows":49,"n_cols":1,"rows_kept":49,"cut":false,"hidden":true,"merged":[]}
["Accounting Clerk"]
["Administrative Assistant"]
["A/P Supervisor"]
["Assistive Technology"]
["Board Member"]
["Board Secretary"]
["Bus Driver"]
["Confidential Administrative Assist."]
["Consultant"]
["Coordinator"]
["Custodian - Casual"]
["Custodian"]
["Director"]
["Dispatcher"]
["Executive Assistant"]
["Guidance"]
["Head Payroll Clerk"]
["Head Mechanic"]
["Homestay Coordinator"]
["IT Support Specialist"]
["Janitor - Casual"]
["Janitor"]
["Lead Hand Mechanic"]
["Library Tech/Clerk"]
["Manager"]
["Mechanic"]
["Motor Vehicle Body Repairer"]
["Other"]
["Payroll Clerk"]
["Personal Officer"]
["Principal"]
["Psychologist"]
["PSA"]
["PST"]
["Procurement Analyst"]
["Reading Recovery"]
["Schools Plus"]
["SLD"]
["SLP"]
["Spare Bus Driver"]
["Student Support Workers"]
["Substitute Administrative Assistant"]
["Superintendent"]
["Supervisor of Technology Services"]
["Teacher"]
["Tradesperson"]
["Transition Facilitator"]
["Transportation Officer"]
["Vice-Principal"]

{"sheet":"GL_1","index":7,"n_rows":16,"n_cols":1,"rows_kept":16,"cut":false,"hidden":true,"merged":[]}
["213115 Cell Reimbursement-HST (No Cost Ctr is required)"]
["631100 Travel"]
["784100 Home Internet (by contract only)"]
["784800 Cell Reimbursement-personal use"]
["786400 Supplies & Materials"]
["814100 Conference-In Province"]
["814150 Conference-Out of Province"]
["814200 Conference-Contract"]
["814300 Inservice-Teachers Contract"]
["814350 Inservice-Teachers Non-Contract"]
["814400 Inservice Non-Teachers Contract"]
["814450 Inservice NT Non-Contract"]
["814500 PD - Teachers Contract"]
["814550 PD - Teachers Non-Contract"]
["814600 PD - Non-Teachers Contract"]
["814650 PD-NT Non-Contract"]

{"sheet":"GL_Mileage","index":8,"n_rows":1,"n_cols":1,"rows_kept":1,"cut":false,"hidden":true,"merged":[]}
["631100 Mileage"]